[Event "Late-Titled-Tuesday-Blitz-May-14-2024"]
[Site "Chess.com"]
[Date "2024.05.14"]
[Round "7"]
[White "Mikhail_Bryakin"]
[Black "Kacparov"]
[Result "0-1"]
[WhiteElo "2844"]
[BlackElo "2927"]
[TimeControl "180+1"]
[EndTime "15:17:47 PDT"]
[Termination "Kacparov won by resignation"]

1. Nf3 {[%clk 0:01:56.8]} 1... d5 {[%clk 0:02:59.8]} 2. d4 {[%clk 0:01:54.9]}
2... Nf6 {[%clk 0:02:59.3]} 3. Bf4 {[%clk 0:01:55.2]} 3... g6 {[%clk 0:02:57.1]}
4. e3 {[%clk 0:01:55.4]} 4... Bg7 {[%clk 0:02:57.3]} 5. c3 {[%clk 0:01:56.1]}
5... O-O {[%clk 0:02:57.6]} 6. Nbd2 {[%clk 0:01:56.5]} 6... b6 {[%clk
0:02:56.6]} 7. h3 {[%clk 0:01:55.9]} 7... Bb7 {[%clk 0:02:56.7]} 8. Bd3 {[%clk
0:01:55.2]} 8... Nbd7 {[%clk 0:02:56.8]} 9. O-O {[%clk 0:01:55.6]} 9... Ne4
{[%clk 0:02:55.5]} 10. Rc1 {[%clk 0:01:50.2]} 10... c5 {[%clk 0:02:54.7]} 11.
Ne5 {[%clk 0:01:48.2]} 11... Nxe5 {[%clk 0:02:51.5]} 12. Bxe5 {[%clk 0:01:49.1]}
12... Bxe5 {[%clk 0:02:31.6]} 13. dxe5 {[%clk 0:01:50]} 13... Nxd2 {[%clk
0:02:30.8]} 14. Qxd2 {[%clk 0:01:49.4]} 14... f6 {[%clk 0:02:31.2]} 15. exf6
{[%clk 0:01:45.2]} 15... Rxf6 {[%clk 0:02:32.1]} 16. e4 {[%clk 0:01:32.7]} 16...
dxe4 {[%clk 0:02:26.4]} 17. Bc4+ {[%clk 0:01:32.5]} 17... Kg7 {[%clk 0:02:26.3]}
18. Qg5 {[%clk 0:01:30.6]} 18... Qc7 {[%clk 0:02:17.4]} 19. Rcd1 {[%clk
0:01:26.3]} 19... Raf8 {[%clk 0:02:16.3]} 20. Qg3 {[%clk 0:01:18.9]} 20... Qxg3
{[%clk 0:02:14.2]} 21. fxg3 {[%clk 0:01:19.8]} 21... Rxf1+ {[%clk 0:01:53.3]}
22. Rxf1 {[%clk 0:01:20.7]} 22... Rf6 {[%clk 0:01:50.6]} 23. g4 {[%clk
0:00:58.6]} 23... g5 {[%clk 0:01:50.3]} 24. Rd1 {[%clk 0:00:56.9]} 24... Rd6
{[%clk 0:01:49.6]} 25. Rf1 {[%clk 0:00:57.4]} 25... Bd5 {[%clk 0:01:44.1]} 26.
Bxd5 {[%clk 0:00:49.8]} 26... Rxd5 {[%clk 0:01:45]} 27. Re1 {[%clk 0:00:49.6]}
27... Kf6 {[%clk 0:01:39.6]} 28. Rxe4 {[%clk 0:00:49.2]} 28... Rd2 {[%clk
0:01:29.9]} 29. Ra4 {[%clk 0:00:49]} 29... a5 {[%clk 0:01:26.6]} 30. b4 {[%clk
0:00:49.1]} 30... cxb4 {[%clk 0:01:24.3]} 31. cxb4 {[%clk 0:00:50]} 31... Rd4
{[%clk 0:01:23.2]} 32. Kf2 {[%clk 0:00:46.9]} 32... Ke5 {[%clk 0:01:19.4]} 33.
Ke3 {[%clk 0:00:43.1]} 33... Kd5 {[%clk 0:01:18.3]} 34. Ra3 {[%clk 0:00:40.7]}
34... Re4+ {[%clk 0:01:16.5]} 35. Kf3 {[%clk 0:00:40]} 35... Rf4+ {[%clk
0:01:13]} 36. Ke3 {[%clk 0:00:39.9]} 36... Rxb4 {[%clk 0:01:12.9]} 37. Rd3+
{[%clk 0:00:40.3]} 37... Ke6 {[%clk 0:01:10.2]} 38. a3 {[%clk 0:00:37.7]} 38...
Rb2 {[%clk 0:01:06.3]} 39. g3 {[%clk 0:00:36.9]} 39... b5 {[%clk 0:01:06.3]} 40.
Kd4 {[%clk 0:00:36.6]} 40... Rc2 {[%clk 0:00:57.8]} 41. Rf3 {[%clk 0:00:24.8]}
41... Rc4+ {[%clk 0:00:57.6]} 42. Kd3 {[%clk 0:00:25.3]} 42... Ra4 {[%clk
0:00:55.2]} 43. Kc2 {[%clk 0:00:25.5]} 43... h6 {[%clk 0:00:48]} 44. Kb3 {[%clk
0:00:24]} 44... Re4 {[%clk 0:00:44.3]} 45. Kc3 {[%clk 0:00:20]} 45... Kd5 {[%clk
0:00:42]} 46. Kd3 {[%clk 0:00:19.3]} 46... e6 {[%clk 0:00:40.2]} 47. Kc3 {[%clk
0:00:14.4]} 47... Rc4+ {[%clk 0:00:39.8]} 48. Kd3 {[%clk 0:00:14]} 48... b4
{[%clk 0:00:36.3]} 49. axb4 {[%clk 0:00:13.5]} 49... axb4 {[%clk 0:00:37.2]} 50.
Kd2 {[%clk 0:00:13.4]} 50... Rc3 {[%clk 0:00:27.8]} 51. Rf6 {[%clk 0:00:13.8]}
51... Rxg3 {[%clk 0:00:23.1]} 52. Rxh6 {[%clk 0:00:14]} 52... e5 {[%clk
0:00:20.7]} 53. Rg6 {[%clk 0:00:12.4]} 53... Kd4 {[%clk 0:00:17.2]} 54. Rxg5
{[%clk 0:00:12.4]} 54... Rg2+ {[%clk 0:00:17.5]} 55. Kd1 {[%clk 0:00:10.9]}
55... b3 {[%clk 0:00:17.3]} 56. Rg8 {[%clk 0:00:07.7]} 56... b2 {[%clk
0:00:17.3]} 57. Rb8 {[%clk 0:00:06.8]} 57... e4 {[%clk 0:00:15.2]} 58. g5 {[%clk
0:00:03.1]} 58... e3 {[%clk 0:00:15.6]} 59. g6 {[%clk 0:00:03.1]} 59... b1=Q+
{[%clk 0:00:11.5]} 60. Rxb1 {[%clk 0:00:02.7]} 60... Rg1+ {[%clk 0:00:12]} 61.
Kc2 {[%clk 0:00:02.9]} 61... Rxb1 {[%clk 0:00:12.2]} 62. Kxb1 {[%clk 0:00:03.2]}
62... e2 {[%clk 0:00:12.7]} 0-1

[Event "Late-Titled-Tuesday-Blitz-May-14-2024"]
[Site "Chess.com"]
[Date "2024.05.14"]
[Round "7"]
[White "Iuckyducky"]
[Black "laskakid"]
[Result "1-0"]
[WhiteElo "2308"]
[BlackElo "2376"]
[TimeControl "180+1"]
[EndTime "15:17:49 PDT"]
[Termination "Iuckyducky won by checkmate"]

1. e4 {[%clk 0:02:50.7]} 1... d6 {[%clk 0:02:59.9]} 2. d4 {[%clk 0:02:48.5]}
2... Nf6 {[%clk 0:03:00]} 3. Nc3 {[%clk 0:02:48.9]} 3... e5 {[%clk 0:03:00]} 4.
dxe5 {[%clk 0:02:48.3]} 4... dxe5 {[%clk 0:03:00.3]} 5. Qxd8+ {[%clk 0:02:49.2]}
5... Kxd8 {[%clk 0:03:00.4]} 6. Bc4 {[%clk 0:02:49.9]} 6... Bb4 {[%clk
0:02:59.4]} 7. Bxf7 {[%clk 0:02:41]} 7... Rf8 {[%clk 0:02:58.7]} 8. Bd5 {[%clk
0:02:19.4]} 8... c6 {[%clk 0:02:48.5]} 9. Bb3 {[%clk 0:01:34.7]} 9... Nxe4
{[%clk 0:02:46.6]} 10. f3 {[%clk 0:01:35.2]} 10... Nxc3 {[%clk 0:02:44.5]} 11.
a3 {[%clk 0:01:34.2]} 11... Nd5+ {[%clk 0:01:50.4]} 12. axb4 {[%clk 0:01:23.9]}
12... Nxb4 {[%clk 0:01:50.5]} 13. Bg5+ {[%clk 0:01:24.6]} 13... Ke8 {[%clk
0:01:42.5]} 14. O-O-O {[%clk 0:01:25.5]} 14... Bd7 {[%clk 0:01:27.2]} 15. Re1
{[%clk 0:01:11.4]} 15... Rf5 {[%clk 0:01:18.1]} 16. Bd2 {[%clk 0:01:10.2]} 16...
Nd5 {[%clk 0:01:14.8]} 17. Ne2 {[%clk 0:01:10.6]} 17... Rf6 {[%clk 0:00:43.1]}
18. Ng3 {[%clk 0:01:06.5]} 18... Re6 {[%clk 0:00:41.4]} 19. Nf5 {[%clk
0:00:45.3]} 19... Kf8 {[%clk 0:00:35]} 20. Bb4+ {[%clk 0:00:44.8]} 20... Nxb4
{[%clk 0:00:33.8]} 21. Bxe6 {[%clk 0:00:41.8]} 21... Bxe6 {[%clk 0:00:34]} 22.
Rxe5 {[%clk 0:00:36.5]} 22... Bf7 {[%clk 0:00:28.8]} 23. Nd6 {[%clk 0:00:23.8]}
23... Nd7 {[%clk 0:00:20.2]} 24. Rf5 {[%clk 0:00:21]} 24... Nf6 {[%clk
0:00:19.6]} 25. Nxb7 {[%clk 0:00:12.3]} 25... Bd5 {[%clk 0:00:16.4]} 26. Re1
{[%clk 0:00:10]} 26... Rb8 {[%clk 0:00:14.4]} 27. Nd6 {[%clk 0:00:08.8]} 27...
Rd8 {[%clk 0:00:13.1]} 28. Ne4 {[%clk 0:00:08.3]} 28... Bxe4 {[%clk 0:00:11.4]}
29. fxe4 {[%clk 0:00:08.9]} 29... Kg8 {[%clk 0:00:10.8]} 30. e5 {[%clk
0:00:08.5]} 30... Nfd5 {[%clk 0:00:10.6]} 31. e6 {[%clk 0:00:09.2]} 31... Ne7
{[%clk 0:00:10.2]} 32. Rf7 {[%clk 0:00:09.4]} 32... Re8 {[%clk 0:00:10.5]} 33.
Rd1 {[%clk 0:00:09.6]} 33... Nbd5 {[%clk 0:00:09.5]} 34. c4 {[%clk 0:00:09]}
34... Nf6 {[%clk 0:00:08.6]} 35. g4 {[%clk 0:00:06.2]} 35... Nxg4 {[%clk
0:00:07.7]} 36. Rd7 {[%clk 0:00:06.7]} 36... Ng6 {[%clk 0:00:04.7]} 37. Rxg7+
{[%clk 0:00:06.8]} 37... Kh8 {[%clk 0:00:04.3]} 38. Rxh7+ {[%clk 0:00:07.3]}
38... Kg8 {[%clk 0:00:04.7]} 39. Rhg7+ {[%clk 0:00:07.8]} 39... Kh8 {[%clk
0:00:04.6]} 40. Rxg6 {[%clk 0:00:06.8]} 40... Ne5 {[%clk 0:00:04.9]} 41. Rh6+
{[%clk 0:00:07.2]} 41... Kg8 {[%clk 0:00:04.6]} 42. Rxa7 {[%clk 0:00:06.7]}
42... Nxc4 {[%clk 0:00:04.3]} 43. Rg6+ {[%clk 0:00:05.3]} 43... Kh8 {[%clk
0:00:04]} 44. Rh6+ {[%clk 0:00:05]} 44... Kg8 {[%clk 0:00:04.2]} 45. Rhh7 {[%clk
0:00:04.9]} 45... Rxe6 {[%clk 0:00:03.4]} 46. Rhc7 {[%clk 0:00:03.7]} 46... Re8
{[%clk 0:00:03.5]} 47. Re7 {[%clk 0:00:03.2]} 47... Rc8 {[%clk 0:00:03]} 48.
Rec7 {[%clk 0:00:03.2]} 48... Re8 {[%clk 0:00:03.1]} 49. Rxc6 {[%clk 0:00:03.3]}
49... Ne5 {[%clk 0:00:03.1]} 50. Rcc7 {[%clk 0:00:02.6]} 50... Ng4 {[%clk
0:00:02.8]} 51. Rg7+ {[%clk 0:00:03.1]} 51... Kf8 {[%clk 0:00:03.3]} 52. Rxg4
{[%clk 0:00:04]} 52... Re6 {[%clk 0:00:01.7]} 53. Rf4+ {[%clk 0:00:04]} 53...
Ke8 {[%clk 0:00:01.4]} 54. Raa4 {[%clk 0:00:04.7]} 54... Rc6+ {[%clk 0:00:01.6]}
55. Rac4 {[%clk 0:00:04.9]} 55... Rd6 {[%clk 0:00:01.6]} 56. Rce4+ {[%clk
0:00:05.4]} 56... Kd8 {[%clk 0:00:00.7]} 57. Rd4 {[%clk 0:00:06.1]} 57... Rxd4
{[%clk 0:00:00.1]} 58. Rxd4+ {[%clk 0:00:07]} 58... Kc7 {[%clk 0:00:00.2]} 59.
h4 {[%clk 0:00:05.4]} 59... Kc6 {[%clk 0:00:01.1]} 60. h5 {[%clk 0:00:06]} 60...
Kc5 {[%clk 0:00:02]} 61. Rd8 {[%clk 0:00:05.5]} 61... Kc6 {[%clk 0:00:02.9]} 62.
h6 {[%clk 0:00:05.8]} 62... Kc5 {[%clk 0:00:03.8]} 63. Re8 {[%clk 0:00:06.1]}
63... Kc6 {[%clk 0:00:04.7]} 64. h7 {[%clk 0:00:06.5]} 64... Kc7 {[%clk
0:00:05.6]} 65. h8=Q {[%clk 0:00:07.1]} 65... Kc6 {[%clk 0:00:06.5]} 66. Qd4
{[%clk 0:00:06.9]} 66... Kb7 {[%clk 0:00:06.7]} 67. Rd8 {[%clk 0:00:06.6]} 67...
Kc6 {[%clk 0:00:07.6]} 68. Qc4+ {[%clk 0:00:06.9]} 68... Kb6 {[%clk 0:00:07.6]}
69. Rc8 {[%clk 0:00:07.2]} 69... Kb7 {[%clk 0:00:08.5]} 70. Qc6+ {[%clk
0:00:07.1]} 70... Ka7 {[%clk 0:00:08.6]} 71. Rc7+ {[%clk 0:00:07.3]} 71... Kb8
{[%clk 0:00:08.1]} 72. Qb7# {[%clk 0:00:08]} 1-0

[Event "Late-Titled-Tuesday-Blitz-May-14-2024"]
[Site "Chess.com"]
[Date "2024.05.14"]
[Round "7"]
[White "Zhigalko_Sergei"]
[Black "Statham_01"]
[Result "0-1"]
[WhiteElo "2823"]
[BlackElo "2639"]
[TimeControl "180+1"]
[EndTime "15:17:52 PDT"]
[Termination "Statham_01 won by resignation"]

1. e4 {[%clk 0:03:00.9]} 1... e5 {[%clk 0:02:59.9]} 2. Nf3 {[%clk 0:03:00.7]}
2... Nc6 {[%clk 0:03:00.2]} 3. Bc4 {[%clk 0:02:58.3]} 3... Nf6 {[%clk
0:03:00.1]} 4. d3 {[%clk 0:02:58.7]} 4... Bc5 {[%clk 0:02:59.8]} 5. O-O {[%clk
0:02:58.1]} 5... d6 {[%clk 0:03:00.3]} 6. c3 {[%clk 0:02:58.1]} 6... a6 {[%clk
0:02:59.5]} 7. Bb3 {[%clk 0:02:58]} 7... h6 {[%clk 0:02:59.3]} 8. Nbd2 {[%clk
0:02:58.3]} 8... Be6 {[%clk 0:02:59]} 9. Re1 {[%clk 0:02:57.8]} 9... Ba7 {[%clk
0:02:55.3]} 10. Nf1 {[%clk 0:02:57.5]} 10... Qe7 {[%clk 0:02:53.4]} 11. Ne3
{[%clk 0:02:48.5]} 11... O-O-O {[%clk 0:02:50]} 12. Nd5 {[%clk 0:02:43.4]} 12...
Bxd5 {[%clk 0:02:38.5]} 13. exd5 {[%clk 0:02:43.3]} 13... Nb8 {[%clk 0:02:38]}
14. d4 {[%clk 0:02:42.6]} 14... Nbd7 {[%clk 0:02:32.4]} 15. a4 {[%clk
0:02:09.7]} 15... g5 {[%clk 0:02:31]} 16. Ba2 {[%clk 0:01:52.2]} 16... Rhg8
{[%clk 0:02:22.2]} 17. b4 {[%clk 0:01:50.2]} 17... g4 {[%clk 0:02:08]} 18. Nh4
{[%clk 0:01:47.4]} 18... Nh5 {[%clk 0:02:04.1]} 19. g3 {[%clk 0:01:36]} 19...
Qf6 {[%clk 0:02:04]} 20. Be3 {[%clk 0:01:32.8]} 20... Nf4 {[%clk 0:02:04.2]} 21.
Bxf4 {[%clk 0:01:24.3]} 21... exf4 {[%clk 0:02:02.9]} 22. a5 {[%clk 0:01:12]}
22... Rg5 {[%clk 0:01:47.3]} 23. Qd3 {[%clk 0:01:05.3]} 23... Rh5 {[%clk
0:01:36]} 24. Ng2 {[%clk 0:01:05.6]} 24... fxg3 {[%clk 0:01:30.7]} 25. fxg3
{[%clk 0:01:02.1]} 25... Ne5 {[%clk 0:01:28.8]} 26. Rf1 {[%clk 0:00:54.8]} 26...
Nf3+ {[%clk 0:01:27.2]} 27. Rxf3 {[%clk 0:00:54]} 27... gxf3 {[%clk 0:01:28.1]}
28. Nf4 {[%clk 0:00:53.8]} 28... Rg5 {[%clk 0:01:24]} 29. Kh1 {[%clk 0:00:47.3]}
29... h5 {[%clk 0:01:15.4]} 30. Nh3 {[%clk 0:00:29.5]} 30... Rf5 {[%clk
0:01:11.9]} 31. Rf1 {[%clk 0:00:25.9]} 31... f2 {[%clk 0:01:03.3]} 32. Nf4
{[%clk 0:00:15.8]} 32... h4 {[%clk 0:00:56.3]} 33. Bb1 {[%clk 0:00:15.8]} 33...
Rg5 {[%clk 0:00:46]} 34. Nh3 {[%clk 0:00:14.8]} 34... hxg3 {[%clk 0:00:26.2]}
35. Nxg5 {[%clk 0:00:12.9]} 35... g2+ {[%clk 0:00:21.7]} 36. Kxg2 {[%clk
0:00:12.7]} 36... Qxg5+ {[%clk 0:00:22.5]} 37. Kxf2 {[%clk 0:00:12.4]} 37... Kb8
{[%clk 0:00:20.7]} 38. Rg1 {[%clk 0:00:08.2]} 38... Qxd5 {[%clk 0:00:19.9]} 39.
Qf3 {[%clk 0:00:03.8]} 39... Qe6 {[%clk 0:00:16.6]} 40. Bf5 {[%clk 0:00:03.4]}
40... Qa2+ {[%clk 0:00:15.8]} 41. Qe2 {[%clk 0:00:02.8]} 41... Qd5 {[%clk
0:00:14.9]} 42. Qf3 {[%clk 0:00:01.9]} 42... Qc4 {[%clk 0:00:12.8]} 43. Rg3
{[%clk 0:00:01.5]} 43... Re8 {[%clk 0:00:11.3]} 44. Bg4 {[%clk 0:00:01.1]} 44...
Qa2+ {[%clk 0:00:11.8]} 45. Kg1 {[%clk 0:00:01.4]} 45... Re1+ {[%clk 0:00:09.2]}
46. Qf1 {[%clk 0:00:02.1]} 46... Rxf1+ {[%clk 0:00:09.6]} 47. Kxf1 {[%clk
0:00:03]} 47... Qb1+ {[%clk 0:00:09.7]} 48. Kg2 {[%clk 0:00:02.1]} 48... Qe4+
{[%clk 0:00:09.4]} 49. Bf3 {[%clk 0:00:02.5]} 49... Qh7 {[%clk 0:00:09.9]} 50.
Bd5 {[%clk 0:00:02.6]} 50... Qc2+ {[%clk 0:00:09.3]} 51. Kg1 {[%clk 0:00:02.2]}
51... Qd1+ {[%clk 0:00:08.8]} 52. Kf2 {[%clk 0:00:02.2]} 52... Bxd4+ {[%clk
0:00:07.6]} 53. Kg2 {[%clk 0:00:01.2]} 53... Qe2+ {[%clk 0:00:06.8]} 54. Kh3
{[%clk 0:00:01.2]} 54... Qh5+ {[%clk 0:00:06.8]} 55. Kg2 {[%clk 0:00:01.9]}
55... Qxd5+ {[%clk 0:00:07.7]} 56. Rf3 {[%clk 0:00:02.4]} 56... Bxc3 {[%clk
0:00:07.4]} 57. Kg3 {[%clk 0:00:01.6]} 57... Be1+ {[%clk 0:00:07.3]} 58. Kg2
{[%clk 0:00:01.4]} 58... Qe4 {[%clk 0:00:07.7]} 59. Kf1 {[%clk 0:00:02.3]} 59...
Qxf3+ {[%clk 0:00:07.7]} 60. Kxe1 {[%clk 0:00:03.2]} 60... Qg2 {[%clk
0:00:07.9]} 61. Kd1 {[%clk 0:00:03.6]} 61... d5 {[%clk 0:00:08.6]} 62. Kc1
{[%clk 0:00:04.5]} 62... d4 {[%clk 0:00:09.5]} 0-1

[Event "Late-Titled-Tuesday-Blitz-May-14-2024"]
[Site "Chess.com"]
[Date "2024.05.14"]
[Round "7"]
[White "szachmistrz2500"]
[Black "slidingknight2775"]
[Result "1-0"]
[WhiteElo "2501"]
[BlackElo "2596"]
[TimeControl "180+1"]
[EndTime "15:17:57 PDT"]
[Termination "szachmistrz2500 won by checkmate"]

1. d4 {[%clk 0:03:00.9]} 1... Nf6 {[%clk 0:02:58.4]} 2. Nf3 {[%clk 0:02:59.5]}
2... e6 {[%clk 0:02:52.2]} 3. e3 {[%clk 0:02:56.9]} 3... c5 {[%clk 0:02:51.2]}
4. Bd3 {[%clk 0:02:55.8]} 4... b6 {[%clk 0:02:51.3]} 5. O-O {[%clk 0:02:54.5]}
5... Bb7 {[%clk 0:02:47.3]} 6. Nbd2 {[%clk 0:02:54.1]} 6... Be7 {[%clk 0:02:47]}
7. b3 {[%clk 0:02:51.1]} 7... O-O {[%clk 0:02:45.8]} 8. Bb2 {[%clk 0:02:51.3]}
8... Nc6 {[%clk 0:02:44.6]} 9. a3 {[%clk 0:02:50.1]} 9... d6 {[%clk 0:02:42]}
10. Qe2 {[%clk 0:02:46.9]} 10... Qc7 {[%clk 0:02:38.9]} 11. c4 {[%clk
0:02:44.5]} 11... Rfe8 {[%clk 0:02:37.4]} 12. Rac1 {[%clk 0:02:37.7]} 12... Rad8
{[%clk 0:02:31.8]} 13. e4 {[%clk 0:02:34]} 13... cxd4 {[%clk 0:02:28.4]} 14.
Nxd4 {[%clk 0:02:33.8]} 14... Nxd4 {[%clk 0:02:26.4]} 15. Bxd4 {[%clk
0:02:33.1]} 15... Nd7 {[%clk 0:02:08.7]} 16. f4 {[%clk 0:02:26.7]} 16... Bf6
{[%clk 0:01:21.5]} 17. Bxf6 {[%clk 0:02:21.6]} 17... Nxf6 {[%clk 0:01:20.8]} 18.
b4 {[%clk 0:02:21.5]} 18... Qd7 {[%clk 0:00:57.6]} 19. Rf3 {[%clk 0:02:11.4]}
19... d5 {[%clk 0:00:38.1]} 20. cxd5 {[%clk 0:02:07.9]} 20... exd5 {[%clk
0:00:37]} 21. e5 {[%clk 0:01:58.5]} 21... Qe7 {[%clk 0:00:07.1]} 22. Rh3 {[%clk
0:01:44.3]} 22... Ne4 {[%clk 0:00:07.3]} 23. Nxe4 {[%clk 0:01:35.8]} 23... dxe4
{[%clk 0:00:07.8]} 24. Bxe4 {[%clk 0:01:36.5]} 24... Bxe4 {[%clk 0:00:07.8]} 25.
Qxe4 {[%clk 0:01:37.4]} 25... g6 {[%clk 0:00:07.9]} 26. Rhc3 {[%clk 0:01:30.9]}
26... Rd7 {[%clk 0:00:06.9]} 27. h3 {[%clk 0:01:28]} 27... Red8 {[%clk 0:00:06]}
28. f5 {[%clk 0:01:19.5]} 28... Rd4 {[%clk 0:00:03.9]} 29. Qe3 {[%clk
0:01:11.1]} 29... gxf5 {[%clk 0:00:02.6]} 30. Rf1 {[%clk 0:01:05.7]} 30... f4
{[%clk 0:00:01.7]} 31. Rxf4 {[%clk 0:01:03.7]} 31... Rxf4 {[%clk 0:00:02.6]} 32.
Qxf4 {[%clk 0:01:04.1]} 32... Kh8 {[%clk 0:00:03]} 33. Kh2 {[%clk 0:00:58.8]}
33... Rg8 {[%clk 0:00:03.4]} 34. Rf3 {[%clk 0:00:55.4]} 34... Qe6 {[%clk
0:00:03.2]} 35. Rd3 {[%clk 0:00:43.3]} 35... Qg6 {[%clk 0:00:02.9]} 36. Qf6+
{[%clk 0:00:33.6]} 36... Qxf6 {[%clk 0:00:03.2]} 37. exf6 {[%clk 0:00:33.9]}
37... Re8 {[%clk 0:00:03.7]} 38. Rd7 {[%clk 0:00:32.5]} 38... Kg8 {[%clk
0:00:03.8]} 39. Re7 {[%clk 0:00:27.9]} 39... Rd8 {[%clk 0:00:03.6]} 40. Rxa7
{[%clk 0:00:27.6]} 40... h5 {[%clk 0:00:04.3]} 41. Kg3 {[%clk 0:00:19.8]} 41...
Rd6 {[%clk 0:00:04.3]} 42. Kh4 {[%clk 0:00:18.6]} 42... Rxf6 {[%clk 0:00:03.2]}
43. Kxh5 {[%clk 0:00:18.7]} 43... Kg7 {[%clk 0:00:03.6]} 44. g4 {[%clk 0:00:18]}
44... Rf3 {[%clk 0:00:02.5]} 45. h4 {[%clk 0:00:16.4]} 45... b5 {[%clk
0:00:03.1]} 46. Kg5 {[%clk 0:00:16.1]} 46... Rd3 {[%clk 0:00:03.2]} 47. h5
{[%clk 0:00:15.9]} 47... Rd5+ {[%clk 0:00:03.5]} 48. Kh4 {[%clk 0:00:16.2]}
48... Re5 {[%clk 0:00:03.9]} 49. Ra5 {[%clk 0:00:12]} 49... Re1 {[%clk
0:00:01.8]} 50. Rxb5 {[%clk 0:00:11.1]} 50... Rh1+ {[%clk 0:00:02.7]} 51. Kg3
{[%clk 0:00:10.3]} 51... Rd1 {[%clk 0:00:03.6]} 52. a4 {[%clk 0:00:08.6]} 52...
Rd4 {[%clk 0:00:03.6]} 53. a5 {[%clk 0:00:08.3]} 53... Rd3+ {[%clk 0:00:04.2]}
54. Kf4 {[%clk 0:00:08]} 54... Ra3 {[%clk 0:00:05.1]} 55. Rb6 {[%clk 0:00:05.7]}
55... Ra4 {[%clk 0:00:05.5]} 56. Kf5 {[%clk 0:00:05.5]} 56... Ra1 {[%clk
0:00:05.3]} 57. h6+ {[%clk 0:00:05.8]} 57... Kh7 {[%clk 0:00:05.5]} 58. g5
{[%clk 0:00:06.3]} 58... Rf1+ {[%clk 0:00:06.2]} 59. Ke5 {[%clk 0:00:06.4]}
59... Re1+ {[%clk 0:00:07.1]} 60. Kf6 {[%clk 0:00:06.5]} 60... Rf1+ {[%clk
0:00:08]} 61. Ke7 {[%clk 0:00:06.8]} 61... Re1+ {[%clk 0:00:08.9]} 62. Kxf7
{[%clk 0:00:06.5]} 62... Rf1+ {[%clk 0:00:06.2]} 63. Rf6 {[%clk 0:00:06.5]}
63... Rc1 {[%clk 0:00:05.4]} 64. g6+ {[%clk 0:00:06.8]} 64... Kxh6 {[%clk
0:00:06.1]} 65. g7+ {[%clk 0:00:07]} 65... Kh5 {[%clk 0:00:06.8]} 66. g8=Q
{[%clk 0:00:07.2]} 66... Rc7+ {[%clk 0:00:07.4]} 67. Ke6 {[%clk 0:00:07.1]}
67... Rc6+ {[%clk 0:00:08]} 68. Ke5 {[%clk 0:00:07.3]} 68... Re6+ {[%clk
0:00:04.3]} 69. Kxe6 {[%clk 0:00:05.5]} 69... Kh4 {[%clk 0:00:03.9]} 70. Rh6#
{[%clk 0:00:05.4]} 1-0

[Event "Late-Titled-Tuesday-Blitz-May-14-2024"]
[Site "Chess.com"]
[Date "2024.05.14"]
[Round "7"]
[White "Eloist"]
[Black "MarceloPlaya"]
[Result "1/2-1/2"]
[WhiteElo "2430"]
[BlackElo "2327"]
[TimeControl "180+1"]
[EndTime "15:17:57 PDT"]
[Termination "Game drawn - insufficient material"]

1. e4 {[%clk 0:03:00.9]} 1... e6 {[%clk 0:03:00]} 2. d4 {[%clk 0:02:59.5]} 2...
d5 {[%clk 0:03:00.5]} 3. Nd2 {[%clk 0:02:59.2]} 3... c5 {[%clk 0:02:59.9]} 4.
exd5 {[%clk 0:02:57.3]} 4... exd5 {[%clk 0:02:59.1]} 5. Ngf3 {[%clk 0:02:54]}
5... Nc6 {[%clk 0:02:58.9]} 6. Bb5 {[%clk 0:02:52.5]} 6... Bd6 {[%clk
0:02:58.6]} 7. dxc5 {[%clk 0:02:51.5]} 7... Bxc5 {[%clk 0:02:58.3]} 8. Nb3
{[%clk 0:02:48.6]} 8... Bb6 {[%clk 0:02:58.1]} 9. O-O {[%clk 0:02:46]} 9... Ne7
{[%clk 0:02:57.7]} 10. Re1 {[%clk 0:02:44.9]} 10... O-O {[%clk 0:02:57.6]} 11.
Be3 {[%clk 0:02:44.5]} 11... Bxe3 {[%clk 0:02:57.5]} 12. Rxe3 {[%clk 0:02:43.8]}
12... Qd6 {[%clk 0:02:57.6]} 13. h3 {[%clk 0:02:21.2]} 13... Bf5 {[%clk
0:02:48]} 14. Nbd4 {[%clk 0:02:20.3]} 14... Bg6 {[%clk 0:02:43.1]} 15. c3 {[%clk
0:02:17.5]} 15... a6 {[%clk 0:02:35.7]} 16. Bd3 {[%clk 0:02:10.8]} 16... Rfe8
{[%clk 0:02:30.8]} 17. Qe2 {[%clk 0:02:08.3]} 17... Bxd3 {[%clk 0:02:21.4]} 18.
Rxd3 {[%clk 0:02:03]} 18... Ng6 {[%clk 0:02:16.1]} 19. Qd2 {[%clk 0:01:53.3]}
19... Nce5 {[%clk 0:02:05.8]} 20. Nxe5 {[%clk 0:01:50.8]} 20... Nxe5 {[%clk
0:02:03.2]} 21. Re3 {[%clk 0:01:30.4]} 21... Nc4 {[%clk 0:01:57.9]} 22. Rxe8+
{[%clk 0:01:29.6]} 22... Rxe8 {[%clk 0:01:56.9]} 23. Qc2 {[%clk 0:01:28.8]}
23... Qe5 {[%clk 0:01:50.1]} 24. Rd1 {[%clk 0:01:25.6]} 24... g6 {[%clk
0:01:39.3]} 25. b3 {[%clk 0:01:20.9]} 25... Nb6 {[%clk 0:01:22.3]} 26. Qd2
{[%clk 0:01:17.2]} 26... Qe4 {[%clk 0:01:11.4]} 27. f3 {[%clk 0:01:12.3]} 27...
Qe3+ {[%clk 0:01:09.4]} 28. Qxe3 {[%clk 0:01:07.5]} 28... Rxe3 {[%clk
0:01:09.1]} 29. Rc1 {[%clk 0:01:07.3]} 29... Rd3 {[%clk 0:00:46.7]} 30. Rc2
{[%clk 0:01:05.6]} 30... Nd7 {[%clk 0:00:40.8]} 31. Kf2 {[%clk 0:01:05]} 31...
Rd1 {[%clk 0:00:40]} 32. Re2 {[%clk 0:00:47.1]} 32... Nc5 {[%clk 0:00:34.7]} 33.
Re8+ {[%clk 0:00:44.9]} 33... Kg7 {[%clk 0:00:33.8]} 34. Rc8 {[%clk 0:00:41.9]}
34... Ne6 {[%clk 0:00:25.1]} 35. Nxe6+ {[%clk 0:00:41.3]} 35... fxe6 {[%clk
0:00:24.8]} 36. Rc7+ {[%clk 0:00:38.1]} 36... Kf6 {[%clk 0:00:19.5]} 37. Rxh7
{[%clk 0:00:33.9]} 37... Rd2+ {[%clk 0:00:18.2]} 38. Kg3 {[%clk 0:00:30.1]}
38... b5 {[%clk 0:00:17.4]} 39. h4 {[%clk 0:00:23.6]} 39... Rxa2 {[%clk
0:00:16.2]} 40. h5 {[%clk 0:00:22.7]} 40... gxh5 {[%clk 0:00:15.7]} 41. Rxh5
{[%clk 0:00:22.8]} 41... Rc2 {[%clk 0:00:15.5]} 42. Rh6+ {[%clk 0:00:20.7]}
42... Ke5 {[%clk 0:00:14.4]} 43. f4+ {[%clk 0:00:19]} 43... Kf5 {[%clk
0:00:13.2]} 44. Rh5+ {[%clk 0:00:18.4]} 44... Kf6 {[%clk 0:00:12.4]} 45. Rh6+
{[%clk 0:00:16.2]} 45... Ke7 {[%clk 0:00:12.5]} 46. Rh7+ {[%clk 0:00:11.3]}
46... Kd6 {[%clk 0:00:12.6]} 47. Ra7 {[%clk 0:00:10.6]} 47... Rxc3+ {[%clk
0:00:12.3]} 48. Kg4 {[%clk 0:00:11]} 48... Rxb3 {[%clk 0:00:12]} 49. Rxa6+
{[%clk 0:00:11.3]} 49... Ke7 {[%clk 0:00:12]} 50. f5 {[%clk 0:00:08.9]} 50...
exf5+ {[%clk 0:00:10.4]} 51. Kxf5 {[%clk 0:00:09.8]} 51... Re3 {[%clk
0:00:07.9]} 52. g4 {[%clk 0:00:09.2]} 52... d4 {[%clk 0:00:07.4]} 53. Ra7+
{[%clk 0:00:07.9]} 53... Ke8 {[%clk 0:00:06.8]} 54. g5 {[%clk 0:00:07.3]} 54...
d3 {[%clk 0:00:06.3]} 55. Ra3 {[%clk 0:00:06]} 55... Rf3+ {[%clk 0:00:04.4]} 56.
Ke4 {[%clk 0:00:05.9]} 56... Rg3 {[%clk 0:00:04.5]} 57. Kf4 {[%clk 0:00:06]}
57... d2 {[%clk 0:00:02.5]} 58. Ra1 {[%clk 0:00:05.3]} 58... Rg2 {[%clk
0:00:02.2]} 59. Rd1 {[%clk 0:00:03.8]} 59... b4 {[%clk 0:00:02.4]} 60. Kf3
{[%clk 0:00:03.7]} 60... Rxg5 {[%clk 0:00:02.3]} 61. Rxd2 {[%clk 0:00:04]} 61...
b3 {[%clk 0:00:03.2]} 62. Rb2 {[%clk 0:00:04.2]} 62... Rb5 {[%clk 0:00:03.1]}
63. Ke3 {[%clk 0:00:04.5]} 63... Kd7 {[%clk 0:00:03.6]} 64. Kd3 {[%clk
0:00:05.1]} 64... Kc6 {[%clk 0:00:03.9]} 65. Kc4 {[%clk 0:00:05.5]} 65... Kb6
{[%clk 0:00:03.6]} 66. Rxb3 {[%clk 0:00:05.5]} 66... Rxb3 {[%clk 0:00:04.2]} 67.
Kxb3 {[%clk 0:00:06.3]} 1/2-1/2